bitfinex-derivatives/quotes_ETHF0:USTF0_20250904
["timestamp","ask_amount","ask_price","bid_price","bid_amount"]
[1756994459897,1.6204,4379.9,4379.7,1.4465]
[1756994460102,1.6204,4379.9,4379.6,0.242]
[1756994460293,1.4508,4379.7,4379.6,1.6885]
[1756994460596,1.4508,4379.8,4379.6,0.242]
[1756994460898,1.6204,4379.9,4379.6,0.242]
[1756994460899,1.4508,4379.7,4379.6,0.242]
[1756994461399,1.4508,4379.6,4378.6,3.2078]
[1756994461589,1.4508,4379.3,4378.7,1.6885]
[1756994462292,4.8282,4379.9,4378.9,4.6543]
[1756994462500,1.6204,4379.9,4379.1,1.4465]
[1756994462692,1.6204,4379.9,4379.4,3.2078]
[1756994462889,1.4508,4379.9,4379.6,1.4465]
[1756994463199,0.001,4380.0,4379.5,0.8658]
[1756994463702,0.001,4380.0,4379.6,1.4465]
[1756994463997,3.2078,4381.4,4380.0,0.6238]
[1756994464197,1.4508,4381.8,4381.0,2.0703]
[1756994464496,3.2078,4381.9,4381.3,3.2078]
[1756994464698,3.2078,4381.9,4381.4,0.243]
[1756994464898,1.4508,4381.4,4380.5,3.8316]
[1756994465094,1.4508,4381.4,4380.7,1.4465]
[1756994465293,3.2078,4381.4,4380.8,0.243]
[1756994465487,1.4508,4381.3,4380.5,3.2078]
[1756994465692,3.2078,4380.9,4380.6,0.243]
[1756994465892,1.4508,4380.8,4380.7,0.243]
[1756994466303,1.4508,4381.4,4380.7,1.6895]
[1756994467396,3.2078,4381.6,4380.9,4.65974089]
[1756994467603,1.4508,4381.8,4381.3,3.2078]
[1756994467794,1.4508,4382.1,4381.4,0.242]
[1756994467994,3.2078,4382.3,4381.4,0.242]
[1756994468395,0.6257,4381.5,4380.5,0.6238]
[1756994468599,1.4508,4381.4,4380.6,0.242]
[1756994470301,1.4508,4381.4,4380.4,3.2078]
[1756994470501,3.8335,4380.5,4379.8,3.2078]
[1756994470798,3.2078,4380.5,4379.8,1.4465]
[1756994470999,3.2078,4382.0,4381.1,1.4465]
[1756994471208,1.4508,4381.6,4381.5,4.04373736]
[1756994471399,0.6257,4381.5,4381.2,0.242]
[1756994471601,1.4508,4381.4,4381.2,0.242]
[1756994472602,1.4508,4381.4,4379.9,1.4465]
[1756994472603,0.5719,4381.0,4379.9,3.2078]
[1756994472808,1.4791,4380.4,4380.0,0.244]
[1756994473100,1.4791,4380.1,4380.0,0.244]
[1756994473310,1.4791,4379.9,4379.3,3.2078]
[1756994473509,1.4791,4379.9,4379.8,0.244]
[1756994473899,0.5719,4380.5,4379.8,0.244]
[1756994474205,1.4791,4380.4,4379.8,3.4518]
[1756994474599,1.4791,4380.4,4379.8,0.244]
[1756994474905,1.4791,4379.9,4379.8,0.244]
[1756994475499,1.4791,4381.4,4380.0,0.5968]
[1756994475694,1.4791,4381.4,4380.9,3.2078]
[1756994475899,1.4791,4381.4,4381.1,5.53333736]
[1756994476109,1.4791,4381.9,4381.1,4.04373736]
[1756994476299,3.2078,4382.1,4381.1,4.04373736]
[1756994476698,1.83597,4381.7,4381.1,4.04373736]
[1756994477004,0.35687,4381.7,4381.5,1.4896]
[1756994477201,0.35687,4381.7,4381.6,1.7336]
[1756994478404,0.35687,4381.7,4381.6,5.77733736]
[1756994479303,0.35687,4381.7,4381.6,0.244]
[1756994479508,1.83597,4381.7,4381.6,0.244]
[1756994481516,0.35687,4381.7,4381.6,1.7336]
[1756994482106,1.83597,4381.7,4381.6,0.244]
[1756994482610,0.35687,4381.7,4381.6,0.244]
[1756994482806,0.35687,4381.7,4381.6,1.7336]
[1756994483005,0.35687,4381.7,4381.6,0.244]
[1756994483912,0.35687,4381.7,4381.6,1.7336]
[1756994484811,0.001,4383.0,4381.8,0.41068]
[1756994485116,0.5719,4382.5,4381.6,3.2078]
[1756994485409,0.5719,4382.5,4381.7,0.243]
[1756994485410,1.4791,4382.4,4381.7,0.243]
[1756994487012,1.4791,4381.9,4381.8,0.243]
[1756994488110,5.4791,4381.9,4381.5,1.6213]
[1756994488314,4.6869,4381.6,4381.5,1.6213]
[1756994488518,4.6869,4381.6,4381.5,1.8643]
[1756994488813,1.4791,4381.6,4381.5,1.8643]
[1756994490214,0.5719,4382.0,4381.5,1.8643]
[1756994490508,1.4791,4381.9,4381.5,1.6213]
[1756994490713,1.4791,4381.9,4381.6,0.243]
[1756994490906,0.5719,4382.0,4381.6,0.243]
[1756994491112,0.5719,4382.0,4381.7,0.243]
[1756994491113,1.4791,4381.9,4381.7,0.243]
[1756994492712,5.4791,4381.9,4381.5,1.6213]
[1756994492914,4.6869,4381.6,4381.5,1.6213]
[1756994493114,4.6869,4381.6,4381.5,1.8643]
[1756994493810,4.6869,4381.6,4381.5,1.8633]
[1756994494012,4.6869,4381.6,4381.5,0.1929]
[1756994494212,4.6869,4381.6,4380.6,3.2078]
[1756994494213,0.5719,4381.0,4380.6,3.2078]
[1756994494407,0.5719,4381.5,4380.8,1.4896]
[1756994494616,1.4791,4381.4,4380.8,1.4896]
[1756994495112,1.4791,4381.4,4380.7,4.28573736]
[1756994495113,3.2078,4381.6,4380.9,1.7326]
[1756994495306,1.4791,4381.7,4380.9,1.7326]
[1756994495810,1.4791,4381.7,4381.1,3.2078]
[1756994496016,1.4791,4381.4,4381.2,0.243]
[1756994496206,1.4791,4381.4,4381.3,0.243]
[1756994496406,1.4791,4380.4,4380.0,25.0]
[1756994496612,4.6869,4380.1,4380.0,21.0861]
[1756994497114,8.6869,4380.1,4380.0,21.0861]
[1756994497913,8.91521,4380.1,4380.0,18.05479796]
[1756994498309,13.20194736,4380.1,4380.0,18.05479796]
[1756994498508,8.91521,4380.1,4380.0,18.05479796]
[1756994498707,4.9299,4380.1,4380.0,18.05479796]
[1756994499115,4.9299,4380.1,4380.0,15.56279796]
[1756994499419,8.9299,4380.1,4380.0,15.56279796]
[1756994499618,8.9299,4380.1,4380.0,14.64519796]
[1756994500015,9.15821,4380.1,4380.0,14.64519796]
[1756994500217,4.9299,4380.1,4380.0,14.64519796]
[1756994500610,4.6869,4380.1,4380.0,14.64519796]
[1756994500812,4.9299,4380.1,4380.0,14.64519796]
[1756994501414,8.9299,4380.1,4380.0,14.64519796]
[1756994502608,8.9299,4380.1,4380.0,4.6399967]
[1756994502921,8.9299,4380.1,4379.6,1.7185]
[1756994503127,4.04373736,4379.7,4377.9,0.196]
[1756994503319,3.2078,4378.1,4377.9,1.6197]
[1756994503517,3.2078,4378.1,4377.9,0.196]
[1756994503717,3.2078,4378.1,4377.9,1.4237]
[1756994504316,7.25153736,4378.1,4377.7,0.3913]
[1756994504527,3.2078,4378.1,4377.8,1.4237]
[1756994504820,3.2078,4378.1,4378.0,3.36658133]
[1756994505012,3.2078,4378.9,4378.6,1.4237]
[1756994505217,3.2078,4378.9,4378.7,1.4237]
[1756994506716,3.2078,4378.9,4378.6,1.6667]
[1756994507112,3.4498,4378.9,4378.2,0.242]
[1756994507317,3.2078,4378.3,4378.2,1.6657]
[1756994507515,3.2078,4378.3,4378.2,1.4237]
[1756994509223,3.2078,4378.3,4378.2,6.78028133]
[1756994510015,3.2078,4378.8,4378.5,0.5863]
[1756994510218,3.2078,4378.8,4378.7,1.4237]
[1756994510820,3.2078,4378.8,4378.1,1.4237]
[1756994511425,3.2078,4378.8,4378.5,0.5863]
[1756994511622,3.2078,4378.8,4378.7,5.46743736]
[1756994512125,3.2078,4378.8,4378.7,6.82401869]
[1756994512320,3.2078,4378.8,4378.7,2.78028133]
[1756994512520,3.2078,4378.8,4378.7,1.4237]
[1756994512725,3.4498,4378.8,4378.2,0.242]
[1756994512928,3.2078,4378.3,4378.2,0.242]
[1756994513322,3.2078,4378.3,4378.2,1.6657]
[1756994514129,3.2078,4378.3,4377.9,1.4237]
[1756994514730,3.2078,4378.3,4377.8,1.4237]
[1756994514930,3.2078,4378.3,4377.7,0.3913]
[1756994515434,3.2078,4378.3,4378.2,1.4237]
[1756994515730,3.2078,4379.0,4378.2,1.6657]
[1756994515922,3.2078,4379.0,4378.4,1.4237]
[1756994516119,3.2078,4378.5,4378.2,1.4237]
[1756994516430,3.2078,4378.5,4378.1,0.242]
[1756994516829,3.2078,4378.5,4378.2,1.4237]
[1756994517130,3.2078,4378.5,4378.3,1.4237]
[1756994517426,3.2078,4378.5,4378.4,1.6657]
[1756994518331,3.2078,4378.5,4378.4,1.4237]
[1756994519829,3.2078,4378.5,4378.4,2.78028133]
[1756994520429,3.2078,4379.0,4378.5,0.5863]
[1756994520632,3.2078,4379.0,4378.7,1.4237]
[1756994521023,3.2078,4379.0,4378.9,1.4237]
[1756994521327,3.2078,4379.4,4379.1,1.4237]
[1756994521531,3.2078,4379.4,4379.0,0.5863]
[1756994521532,3.2078,4380.2,4379.3,5.46743736]
[1756994521733,3.2078,4380.2,4379.5,0.5863]
[1756994521937,3.2078,4380.2,4379.6,1.6657]
[1756994522524,3.2078,4380.2,4380.0,0.5863]
[1756994522729,3.2078,4381.2,4380.5,0.5863]
[1756994522926,3.2078,4381.2,4380.6,0.242]
[1756994523130,3.2078,4381.2,4380.6,3.02228133]
[1756994524334,0.242,4381.3,4380.6,3.02228133]
[1756994524528,0.242,4381.3,4380.6,1.59858133]
[1756994524728,0.242,4381.3,4380.7,2.78028133]
[1756994524931,3.2078,4381.1,4380.5,0.5863]
[1756994525228,3.2078,4380.6,4380.3,0.242]
[1756994525633,3.2078,4380.6,4380.2,1.4237]
[1756994525832,3.4498,4380.6,4379.9,0.242]
[1756994526028,3.2078,4380.1,4379.9,0.242]
[1756994526230,0.242,4380.0,4379.5,0.5863]
[1756994526429,0.242,4380.0,4379.6,1.4237]
[1756994526730,0.242,4380.0,4379.5,0.5863]
[1756994526932,0.242,4380.0,4379.6,1.4237]
[1756994527237,1.2625,4379.5,4379.4,1.4237]
[1756994527643,9.2992,4379.5,4378.6,1.4237]
[1756994527840,5.2992,4379.5,4378.5,0.8283]
[1756994528034,5.0572,4379.5,4378.5,0.8283]
[1756994528236,4.7123,4379.5,4378.7,1.4237]
[1756994528737,4.7123,4379.5,4378.7,2.78028133]
[1756994528928,4.7123,4379.5,4378.7,1.4237]
[1756994529130,0.5869,4379.4,4378.7,1.4237]
[1756994530132,3.7947,4378.9,4378.5,2.01]
[1756994530331,0.5869,4378.6,4377.6,1.8665]
[1756994530536,0.5869,4377.8,4377.6,1.8665]
[1756994530743,3.2078,4377.9,4377.8,2.78028133]
[1756994531135,3.2078,4377.9,4377.8,1.4237]
[1756994532341,3.2078,4378.6,4377.8,1.4237]
[1756994532529,5.4512,4378.7,4378.5,0.6078]
[1756994532734,5.4512,4378.7,4378.6,1.5422]
[1756994532945,1.6984,4378.7,4378.6,1.5422]
[1756994534042,0.2046,4377.8,4377.7,3.5991]
[1756994534243,0.2046,4377.8,4377.7,3.8411]
[1756994534440,0.2046,4377.8,4377.7,5.19768133]
[1756994535836,1.42,4378.1,4377.7,1.98988133]
[1756994536040,1.42,4378.4,4377.8,1.35658133]
[1756994536336,3.2078,4378.6,4377.9,1.5422]
[1756994536544,3.2078,4378.6,4378.5,0.6078]
[1756994536747,3.2078,4378.6,4378.5,3.50658133]
[1756994537237,3.2078,4378.6,4378.3,0.242]
[1756994537440,1.42,4378.4,4378.3,0.242]
[1756994537639,1.42,4378.4,4377.9,0.242]
[1756994538038,1.662,4378.4,4377.9,0.242]
[1756994538740,1.42,4378.3,4377.7,0.3913]
[1756994539039,1.42,4377.9,4377.7,0.3913]
[1756994539244,1.662,4377.8,4377.7,0.3913]
[1756994539843,1.662,4377.8,4375.8,1.5422]
[1756994539844,1.64843,4377.7,4375.8,1.5422]
[1756994540041,0.5695,4377.0,4375.6,2.89878133]
[1756994540245,3.2078,4376.1,4375.7,1.35658133]
[1756994540540,1.42,4376.0,4375.4,3.2078]
[1756994540744,1.9895,4376.0,4375.4,3.2078]
[1756994541141,1.42,4375.9,4375.4,3.2078]
[1756994541339,1.42,4375.4,4374.1,3.2078]
[1756994541534,3.2078,4374.7,4374.2,1.35658133]
[1756994541738,3.2078,4374.7,4374.2,2.89878133]
[1756994541940,3.2078,4374.7,4374.3,1.35658133]
[1756994542148,3.2078,4374.7,4374.2,1.35658133]
[1756994542341,1.42,4375.1,4374.5,0.6078]
[1756994542547,3.2078,4375.3,4374.7,1.5422]
[1756994543048,3.2078,4375.3,4374.8,1.35658133]
[1756994543542,0.5695,4376.0,4375.0,1.5422]
[1756994543738,0.242,4375.8,4375.3,3.2078]
[1756994543937,0.242,4376.0,4375.4,1.5422]
[1756994544142,3.2078,4375.8,4375.4,1.35658133]
[1756994544346,3.2078,4375.8,4375.6,1.5422]
[1756994544649,5.22626902,4377.0,4375.5,1.35658133]
[1756994544650,3.2078,4376.3,4375.8,1.5422]
[1756994544944,1.42,4376.2,4375.7,1.5422]
[1756994545140,1.42,4376.2,4375.5,0.242]
[1756994545449,1.42,4375.6,4375.5,0.242]
[1756994546150,1.42,4375.6,4374.8,4.75]
[1756994546151,0.5695,4375.5,4374.8,4.75]
[1756994546349,0.5695,4375.5,4374.9,1.35658133]
[1756994546945,3.2078,4375.0,4374.7,0.242]
[1756994547140,1.42,4374.9,4374.1,1.5422]
[1756994547341,1.42,4374.9,4373.5,0.6078]
[1756994547342,1.42,4374.2,4373.6,1.5422]
[1756994547544,1.42,4374.2,4373.0,3.8156]
[1756994547545,4.6278,4373.7,4372.8,0.1737997]
[1756994547847,1.9895,4373.5,4372.9,1.35658133]
[1756994548251,1.9895,4373.5,4372.8,0.1737997]
[1756994548446,1.42,4373.5,4372.9,1.35658133]
[1756994548751,4.6278,4374.2,4373.6,1.5422]
[1756994549049,4.6278,4374.2,4373.7,1.35658133]
[1756994549341,4.65676902,4373.9,4372.8,0.1737997]
[1756994549542,4.65676902,4373.9,4371.7,1.5422]
[1756994549543,7.86456902,4372.9,4371.1,1.5422]
[1756994549747,3.2078,4371.7,4371.1,1.5422]
[1756994551541,0.243,4371.6,4371.0,0.6078]
[1756994551847,0.243,4371.6,4371.1,1.5422]
[1756994552048,0.243,4371.6,4371.0,0.6078]
[1756994552248,0.242,4371.6,4371.1,1.5422]
[1756994552449,3.2078,4371.2,4371.1,1.5422]
[1756994553444,8.10656902,4371.2,4370.8,2.3378]
[1756994553642,8.10656902,4371.2,4370.8,0.7956]
[1756994554050,1.796,4371.1,4370.8,0.7956]
[1756994554238,4.0,4371.0,4370.0,2.15]
[1756994554441,3.2078,4370.4,4370.0,1.5422]
[1756994554642,0.243,4370.3,4369.6,1.5422]
[1756994555149,3.2078,4370.4,4369.6,1.5422]
[1756994555350,3.4508,4370.4,4369.6,1.5422]
[1756994555954,3.4498,4370.4,4370.1,1.5422]
[1756994556952,3.4498,4370.4,4370.1,0.7326]
[1756994557348,3.4498,4370.4,4369.2,0.242]
[1756994557349,4.2594,4370.4,4369.2,0.242]
[1756994557553,3.2078,4369.9,4369.0,0.6078]
[1756994557750,0.242,4369.8,4369.0,0.6078]
[1756994558853,0.1144,4369.7,4369.1,1.5422]
[1756994560056,0.3564,4369.7,4369.1,1.5422]
[1756994560356,0.242,4369.6,4369.0,0.6078]
[1756994560655,0.242,4369.6,4369.1,1.5422]
[1756994560848,0.1144,4369.7,4369.6,1.5422]
[1756994561048,0.1144,4369.7,4369.2,0.242]
[1756994561847,1.5344,4369.7,4369.2,0.242]
[1756994562052,0.1144,4369.7,4369.2,0.242]
[1756994562452,1.4566,4370.7,4369.3,7.43666]
[1756994562652,0.6148,4373.0,4369.2,0.242]
[1756994562653,1.4566,4371.3,4370.0,0.1705]
[1756994562853,3.2078,4371.6,4370.5,3.2078]
[1756994563052,0.6148,4371.5,4370.6,0.242]
[1756994563254,2.0714,4371.5,4370.6,0.242]
[1756994564155,0.6148,4371.0,4370.5,0.242]
[1756994564356,2.0714,4371.0,4370.5,0.242]
[1756994564561,0.6148,4371.0,4370.5,0.242]
[1756994564861,0.6148,4371.0,4369.5,3.2078]
[1756994565055,0.6148,4371.0,4369.6,0.242]
[1756994565259,0.6148,4371.0,4369.5,3.43661999]
[1756994565260,3.2078,4370.5,4369.7,0.242]
[1756994565652,3.2078,4370.5,4369.5,3.2078]
[1756994565653,3.2078,4370.5,4369.8,0.242]
[1756994565854,3.8226,4371.0,4370.0,3.2078]
[1756994566054,3.2078,4371.0,4370.0,3.2078]
[1756994566249,3.8226,4371.5,4370.6,3.2078]
[1756994566460,3.2078,4371.5,4370.7,0.242]
[1756994566764,3.2078,4372.0,4371.1,3.2078]
[1756994567058,3.2078,4372.5,4371.7,7.86456902]
[1756994567262,3.2078,4372.5,4371.8,0.242]
[1756994567449,1.4566,4372.9,4371.7,3.2078]
[1756994567650,1.4566,4371.9,4371.5,0.242]
[1756994567853,4.6644,4371.9,4371.5,0.242]
[1756994568451,4.6644,4371.9,4371.4,0.242]
[1756994568452,1.4566,4371.8,4371.4,0.242]
[1756994568659,0.6148,4372.0,4371.4,0.242]
[1756994568857,1.852,4371.5,4371.4,3.4498]
[1756994569255,1.852,4371.5,4371.4,8.10656902]
[1756994569856,1.852,4371.5,4371.4,12.10656902]
[1756994570561,1.852,4371.5,4371.4,3.4498]
[1756994570756,3.9234,4371.5,4371.4,3.4498]
[1756994570951,3.9234,4371.5,4371.4,0.242]
[1756994571153,2.0714,4371.5,4370.3,3.2078]
[1756994571358,3.8226,4371.5,4370.4,0.242]
[1756994571552,3.8226,4371.5,4370.3,3.2078]
[1756994571553,1.4566,4370.4,4370.3,3.2078]
[1756994571755,1.4566,4370.4,4370.3,3.4498]
[1756994572151,1.4566,4370.4,4370.3,3.2078]
[1756994572358,0.6148,4370.5,4370.3,3.4498]
[1756994572557,1.4566,4370.9,4370.4,0.242]
[1756994572765,2.0714,4370.5,4370.4,0.242]
[1756994573166,0.6148,4370.5,4370.3,3.2078]
[1756994573369,0.6148,4370.0,4369.1,3.2078]
[1756994573570,1.4566,4369.9,4369.2,0.242]
[1756994573969,0.6148,4370.0,4369.1,3.2078]
[1756994574169,1.4566,4369.4,4369.3,0.242]
[1756994574372,3.2078,4369.4,4368.6,31.571]
[1756994574569,0.6148,4369.0,4368.7,0.242]
[1756994574769,1.4566,4368.9,4368.7,0.242]
[1756994575368,0.6148,4369.0,4368.7,0.242]
[1756994575568,1.4566,4368.9,4368.7,0.242]
[1756994576475,0.6148,4369.0,4368.7,0.242]
[1756994576878,1.4566,4368.9,4368.7,0.242]
[1756994577480,0.6148,4369.0,4368.6,31.571]
[1756994577775,1.4566,4368.9,4368.7,0.242]
[1756994578771,0.6148,4369.0,4368.7,0.242]
[1756994578976,1.4566,4368.8,4368.7,0.242]
[1756994579479,1.4566,4368.9,4368.7,0.242]
[1756994580277,0.6148,4369.0,4368.7,0.242]
[1756994581172,1.4566,4368.9,4368.7,0.242]
[1756994581581,0.6148,4369.0,4368.6,31.571]
[1756994581882,1.4566,4368.9,4368.7,0.243]
[1756994582380,1.4566,4368.9,4368.7,0.899]
[1756994582684,1.4566,4368.9,4368.8,0.243]
[1756994582881,2.0308854,4368.9,4368.8,0.243]
[1756994583179,4.6644,4369.4,4368.8,4.243]
[1756994583382,4.6644,4369.4,4368.8,0.243]
[1756994583582,1.4566,4368.9,4368.7,0.899]
[1756994583779,4.6644,4369.4,4368.8,0.243]
[1756994584080,0.6148,4369.0,4368.8,0.243]
[1756994584281,0.6148,4369.0,4368.9,0.243]
[1756994584977,2.0714,4369.0,4368.9,0.243]
[1756994585377,1.4566,4368.9,4368.7,0.899]
[1756994585576,2.0714,4369.0,4368.9,0.243]
[1756994586187,2.0714,4369.0,4368.7,0.899]
[1756994586381,2.0714,4369.0,4368.9,0.243]
[1756994587684,1.4566,4369.0,4368.9,0.243]
[1756994588185,2.0714,4369.0,4368.9,0.243]
[1756994588481,3.2078,4369.4,4368.9,0.243]
[1756994588683,1.4566,4369.1,4368.9,0.243]
[1756994588885,1.4566,4369.3,4368.9,0.65489]
[1756994589081,0.243,4370.8,4368.9,0.65489]
[1756994589082,3.2078,4370.6,4369.2,4.65676902]
[1756994589387,3.2078,4370.6,4369.9,3.2078]
[1756994589587,3.2078,4370.6,4370.0,0.243]
[1756994589975,3.2078,4370.6,4369.4,8.41586917]
[1756994590179,0.6148,4370.0,4369.5,0.243]
[1756994590381,0.6148,4370.0,4369.6,0.243]
[1756994591184,1.4566,4369.9,4369.6,0.243]
[1756994591389,1.4566,4369.9,4369.2,0.82026917]
[1756994591584,1.4566,4370.4,4369.7,4.06366917]
[1756994591790,1.4566,4370.4,4369.8,0.243]
[1756994592092,0.6148,4370.0,4369.8,0.243]
[1756994592287,0.6148,4370.0,4369.0,1.1444]
[1756994592288,0.6148,4370.0,4369.2,4.06366917]
[1756994592585,1.47,4369.4,4368.5,1.1452]
[1756994592788,1.47,4369.4,4369.3,0.243]
[1756994592993,1.47,4369.4,4368.9,7.27146917]
[1756994593186,0.5971,4369.5,4368.9,7.27146917]
[1756994593383,1.47,4369.4,4368.9,7.27146917]
[1756994593585,0.5971,4369.5,4369.0,0.243]
[1756994593784,0.5971,4369.5,4369.1,1.1452]
[1756994593995,0.5971,4369.5,4369.0,0.243]
[1756994594491,0.5971,4369.5,4368.9,7.27146917]
[1756994594688,1.47,4369.4,4369.0,0.243]
[1756994594889,1.47,4369.4,4369.1,1.1452]
[1756994595089,0.5971,4369.5,4369.0,0.243]
[1756994595292,1.47,4369.4,4369.0,0.243]
[1756994595498,2.0671,4369.0,4368.9,3.2078]
[1756994595997,2.0671,4369.0,4368.9,3.4508]
[1756994596695,2.0671,4369.0,4368.9,3.2078]
[1756994596896,2.0671,4369.0,4368.9,0.243]
[1756994597201,2.0671,4369.0,4368.7,0.899]
[1756994597394,0.5971,4369.0,4368.9,0.243]
[1756994598000,1.47,4368.9,4368.7,0.899]
[1756994598202,1.47,4368.9,4368.8,31.827]
[1756994598804,1.47,4368.9,4368.8,0.243]
[1756994599794,1.47,4368.9,4368.7,0.899]
[1756994600000,1.47,4368.9,4368.8,0.243]
[1756994600197,1.47,4368.9,4368.7,0.899]
[1756994600406,1.47,4368.9,4368.7,1.142]
[1756994600899,0.5971,4369.0,4368.7,1.142]
[1756994601592,1.47,4368.9,4368.7,1.142]
[1756994601992,1.47,4368.9,4368.7,0.899]
[1756994602800,4.0,4368.8,4367.4,31.583]
[1756994602998,3.2078,4368.2,4367.5,0.243]
[1756994603292,1.47,4367.9,4367.5,0.243]
[1756994603602,0.5971,4368.0,4367.5,1.804]
[1756994603804,3.2078,4368.2,4367.6,1.561]
[1756994604105,3.2078,4368.2,4367.5,0.243]
[1756994604106,1.47,4367.9,4367.7,0.243]
[1756994604499,1.0604,4367.4,4366.3,1.561]
[1756994604697,3.2078,4367.3,4366.3,1.561]
[1756994604892,3.2078,4367.3,4367.2,5.62466917]
[1756994605104,3.2078,4367.3,4367.2,5.86766917]
[1756994605704,3.2078,4367.3,4367.2,1.561]
[1756994605905,3.2078,4367.3,4367.2,1.804]
[1756994606399,3.2078,4367.3,4366.5,0.6237]
[1756994606604,4.06366917,4367.7,4366.5,0.6237]
[1756994606605,3.2078,4366.6,4366.5,2.1847]
[1756994606807,3.2078,4366.6,4366.5,2.4277]
[1756994607196,0.5971,4369.0,4366.5,2.4277]
[1756994607197,3.2078,4367.3,4366.5,1.561]
[1756994607400,3.2078,4367.3,4366.5,1.804]
[1756994607600,1.47,4367.2,4366.6,0.244]
[1756994607799,3.2078,4367.3,4366.4,34.7948]
[1756994608005,1.47,4367.1,4366.5,0.244]
[1756994608200,0.5971,4367.0,4366.4,31.587]
[1756994608405,1.47,4366.9,4366.5,0.244]
[1756994608808,2.0671,4366.5,4366.4,31.587]
[1756994609104,1.47,4367.0,4366.4,31.831]
[1756994609311,1.47,4367.0,4366.4,35.0388]
[1756994609512,1.47,4367.2,4366.5,0.244]
[1756994609902,2.0671,4366.5,4366.4,34.7948]
[1756994610207,2.0671,4366.5,4366.4,31.587]
[1756994610410,2.0671,4366.5,4366.4,31.531]
[1756994610913,6.0671,4366.5,4365.2,1.561]
[1756994611115,6.0671,4366.5,4363.7,2.85755634]
[1756994611116,1.47,4365.2,4365.0,23.9912]
[1756994611303,4.0,4365.2,4365.0,23.9912]
[1756994611704,4.244,4365.1,4363.5,0.6237]
[1756994612001,3.2078,4363.6,4363.5,2.1847]
[1756994612410,3.2078,4363.6,4363.5,2.4307]
[1756994612717,7.2078,4363.6,4363.0,0.6237]
[1756994612906,3.2078,4363.1,4363.0,2.1847]
[1756994613214,3.2078,4363.1,4363.0,0.246]
[1756994613409,7.2078,4363.1,4362.2,0.18707078]
[1756994613617,11.27146917,4363.1,4362.4,0.246]
[1756994613932,3.2078,4363.1,4363.0,2.1847]
[1756994614207,3.2078,4363.6,4363.0,0.6237]
[1756994614413,3.2078,4363.6,4363.2,1.561]
[1756994614611,3.2078,4363.6,4363.4,1.561]
[1756994614816,3.2078,4363.6,4363.5,0.6237]
[1756994615017,3.2078,4363.6,4363.5,2.4317]
[1756994615309,3.2078,4363.6,4363.5,6.4317]
[1756994615513,3.2078,4364.1,4364.0,0.6237]
[1756994615812,3.3223,4365.4,4364.1,1.561]
[1756994616017,3.2078,4364.9,4364.3,1.561]
[1756994616310,3.2078,4364.4,4364.3,1.561]
[1756994616512,3.3223,4365.4,4364.4,1.561]
[1756994616810,3.3223,4365.4,4365.1,1.561]
[1756994617010,3.3223,4365.4,4365.0,1.561]
[1756994617319,1.47,4365.2,4364.6,1.561]
[1756994617510,1.47,4365.2,4364.2,31.607]
[1756994617511,3.2078,4364.9,4364.8,1.561]
[1756994617710,3.3223,4365.4,4364.8,1.561]
[1756994618116,0.41224,4365.3,4365.1,4.06366917]
[1756994618419,0.41211,4366.7,4365.3,1.561]
[1756994618619,1.47,4366.8,4366.1,1.561]
[1756994618915,1.47,4366.8,4365.5,0.6237]
[1756994618916,1.88214,4366.3,4366.2,0.247]
[1756994619112,0.41218,4365.9,4365.8,31.609]
[1756994619312,0.41218,4365.9,4365.8,31.856]
[1756994619516,1.88218,4365.9,4365.8,31.609]
[1756994619707,1.88218,4365.9,4365.8,31.856]
[1756994620509,1.88218,4365.9,4365.8,31.609]
[1756994620716,0.41218,4365.9,4365.8,33.417]
[1756994620915,0.41218,4365.9,4365.8,33.17]
[1756994621219,0.41218,4365.9,4365.8,33.417]
[1756994621434,3.2078,4366.1,4365.8,0.247]
[1756994621615,1.47,4366.0,4365.9,0.247]
[1756994621810,3.2078,4366.1,4365.9,0.247]
[1756994622010,3.2078,4366.1,4366.0,5.62466917]
[1756994622222,0.247,4367.9,4366.0,5.62466917]
[1756994622223,3.2078,4366.7,4366.1,1.4733]
[1756994622521,3.2078,4366.7,4366.3,1.4733]
[1756994622716,0.18042,4367.1,4366.6,1.4733]
[1756994622917,0.18042,4367.1,4366.7,0.247]
[1756994623220,1.5267,4367.0,4366.3,3.2078]
[1756994623418,2.1298,4367.0,4366.4,0.247]
[1756994623613,0.18042,4367.1,4366.4,4.31066917]
[1756994623813,0.18042,4367.1,4366.9,4.06366917]
[1756994624015,0.18042,4367.1,4367.0,0.247]
[1756994624209,0.6031,4366.5,4365.6,3.2078]
[1756994624414,5.59036917,4365.9,4365.4,0.248]
[1756994624611,5.59036917,4365.9,4364.7,3.2078]
[1756994624612,3.8109,4365.5,4364.2,31.608]
[1756994624812,1.5267,4364.9,4364.3,0.248]
[1756994625015,1.5267,4364.9,4364.2,31.608]
[1756994625016,1.5267,4364.9,4364.0,3.2078]
[1756994625320,0.6031,4364.4,4364.1,0.249]
[1756994625521,0.6031,4364.4,4363.5,3.2078]